bitfinex/quotes_SOLUSD_20250531
["timestamp","ask_amount","ask_price","bid_price","bid_amount"]
[1748666276372,28.47013089,155.07,155.02,22.02111558]
[1748666276798,36.61695714,155.09,155.04,22.02111558]
[1748666278220,6.44762006,155.1,155.05,22.02111558]
[1748666278419,22.02111558,155.09,155.04,62.30111558]
[1748666278720,48.81836444,155.08,154.98,6.45244547]
[1748666279007,22.02111558,155.04,154.99,22.02111558]
[1748666279502,22.02111558,155.05,155.0,22.02111558]
[1748666280707,22.02111558,155.04,154.99,22.02111558]
[1748666281210,22.02111558,155.02,154.97,32.72111558]
[1748666281579,22.02111558,155.03,154.98,22.02111558]
[1748666282077,28.47167486,155.03,154.98,22.02111558]
[1748666283012,22.02111558,155.01,154.97,10.7]
[1748666283304,1.6112,155.01,154.93,125.62111558]
[1748666283606,23.63231558,155.01,154.96,22.02111558]
[1748666284190,6.4516129,155.0,154.96,22.02111558]
[1748666284386,28.47272848,155.0,154.95,22.02111558]
[1748666284782,30.08362601,155.01,154.96,22.02111558]
[1748666284991,142.95840114,155.02,154.97,22.02111558]
[1748666285202,120.93728556,155.02,154.98,22.02111558]
[1748666285382,120.93728556,155.02,155.0,22.02111558]
[1748666285383,114.48639528,155.02,155.0,22.02111558]
[1748666286299,1.5455,155.05,155.01,22.02111558]
[1748666286606,28.10011558,155.06,155.02,22.02111558]
[1748666286607,22.02111558,155.06,155.02,22.02111558]
[1748666287096,22.02111558,155.06,155.01,22.02111558]
[1748666287984,6.4495324,155.05,155.01,22.02111558]
[1748666289289,28.47029448,155.06,155.01,22.02111558]
[1748666289685,22.02111558,155.06,155.01,22.02111558]
[1748666290086,28.46989931,155.07,155.02,22.02111558]
[1748666290407,142.95589419,155.08,155.03,22.02111558]
[1748666292146,6.44838333,155.08,155.04,22.02111558]
[1748666292289,22.02111558,155.07,155.03,0.28432314]
[1748666292694,6.44838333,155.08,155.03,0.28432314]
[1748666292917,22.02111558,155.07,155.03,0.28432314]
[1748666293612,6.44838333,155.08,155.03,0.28432314]
[1748666293820,22.02111558,155.07,155.03,0.28432314]
[1748666294017,22.02111558,155.06,155.01,48.02111558]
[1748666294203,6.44874719,155.07,155.01,26.0]
[1748666294204,22.02111558,155.05,155.01,26.0]
[1748666296112,28.47085373,155.05,155.01,26.0]
[1748666297916,22.02111558,155.03,154.99,10.7]
[1748666298516,22.02111558,155.04,154.99,32.72111558]
[1748666299226,22.02111558,155.03,154.99,10.7]
[1748666299789,6.45078054,155.02,154.99,10.7]
[1748666300022,28.47189612,155.02,154.99,10.7]
[1748666300515,28.47158827,155.03,154.99,10.7]
[1748666301699,22.02111558,155.02,154.99,10.7]
[1748666302001,28.47200543,155.02,154.99,10.7]
[1748666303349,22.02111558,155.05,155.0,22.02111558]
[1748666303633,22.02111558,155.05,155.0,22.30543872]
[1748666304004,22.02111558,155.04,154.99,32.72111558]
[1748666304327,22.02111558,155.03,154.99,10.7]
[1748666304625,22.02111558,155.02,154.99,10.7]
[1748666305025,22.02111558,155.03,154.99,10.7]
[1748666306500,28.4716107,155.03,154.99,10.7]
[1748666307326,22.02111558,155.02,154.99,10.7]
[1748666309124,28.47209776,155.02,154.99,10.7]
[1748666309636,121.07839528,155.08,155.01,22.02111558]
[1748666309817,22.02111558,155.06,155.01,22.02111558]
[1748666310133,22.02111558,155.05,155.0,22.30543872]
[1748666310710,22.02111558,155.05,155.01,22.02111558]
[1748666312813,28.47070776,155.05,155.01,22.02111558]
[1748666313016,6.44925449,155.06,155.01,28.47228912]
[1748666313221,22.02111558,155.06,155.01,28.47228912]
[1748666313638,22.02111558,155.07,155.02,22.02111558]
[1748666313838,114.48639528,155.08,155.03,22.02111558]
[1748666314039,136.50751086,155.08,155.04,22.02111558]
[1748666314246,114.48639528,155.08,155.04,22.02111558]
[1748666314455,22.02111558,155.08,155.03,48.02111558]
[1748666314747,22.02111558,155.07,155.03,26.0]
[1748666315259,6.44756268,155.1,155.03,26.0]
[1748666315260,22.02111558,155.08,155.03,48.02111558]
[1748666316839,28.4696081,155.08,155.03,48.02111558]
[1748666318024,22.02111558,155.07,155.02,22.02111558]
[1748666318225,22.02111558,155.06,155.01,54.75652732]
[1748666318522,28.46990777,155.07,155.02,22.02111558]
[1748666319118,22.02111558,155.06,155.02,10.68]
[1748666320124,28.46990777,155.07,155.02,32.70111558]
[1748666322229,22.02111558,155.06,155.02,10.68]
[1748666323822,22.02111558,155.05,155.02,10.68]
[1748666324123,22.02111558,155.05,155.0,32.70111558]
[1748666324324,23.60471558,155.06,155.0,17.13152225]
[1748666324548,23.60471558,155.06,155.01,22.30543872]
[1748666325629,22.02111558,155.05,155.01,0.28432314]
[1748666328253,22.02111558,155.05,155.01,6.73550515]
[1748666329146,22.02111558,155.05,155.01,0.28432314]
[1748666329554,30.05391598,155.06,155.01,0.28432314]
[1748666330441,23.60471558,155.06,155.01,28.75661812]
[1748666332659,22.02111558,155.08,155.03,22.02111558]
[1748666332879,28.46934533,155.09,155.03,22.02111558]
[1748666333731,22.02111558,155.08,155.03,22.02111558]
[1748666334562,22.02111558,155.08,155.03,28.47137425]
[1748666335057,138.03111086,155.1,155.05,22.02111558]
[1748666335573,22.02111558,155.09,155.04,22.30543872]
[1748666336736,22.02111558,155.09,155.04,28.75531625]
[1748666336955,28.4689984,155.09,155.04,28.75531625]
[1748666337358,22.02111558,155.09,155.04,28.75531625]
[1748666337761,22.02111558,155.09,155.04,22.30543872]
[1748666338137,22.02111558,155.09,155.04,28.75524524]
[1748666338836,28.4691459,155.09,155.04,28.75524524]
[1748666339238,22.02111558,155.09,155.04,28.75524524]
[1748666340537,28.46899444,155.09,155.04,28.75524524]
[1748666340739,22.02111558,155.08,155.04,22.30543872]
[1748666341583,28.46942455,155.08,155.04,0.28432314]
[1748666341770,22.02111558,155.06,155.0,10.68]
[1748666341959,22.02111558,155.05,155.0,32.70111558]
[1748666342164,22.02111558,155.04,155.0,10.68]
[1748666342842,28.47132743,155.04,155.0,10.68]
[1748666343249,22.02111558,155.04,155.0,10.68]
[1748666343947,22.02111558,155.05,155.0,39.15268]
[1748666344769,22.02111558,155.06,155.01,22.02111558]
[1748666344945,28.47025303,155.06,155.01,22.02111558]
[1748666345880,22.02111558,155.05,155.0,39.15268]
[1748666346682,22.02111558,155.04,155.0,10.68]
[1748666347251,28.470842,155.05,155.0,39.15272726]
[1748666347773,28.470842,155.05,155.0,32.70111558]
[1748666348080,22.02111558,155.03,155.0,10.68]
[1748666348251,6.44972642,155.05,155.0,10.68]
[1748666348252,13.04262642,155.05,155.0,10.68]
[1748666348461,22.02111558,155.04,155.0,10.68]
[1748666349283,35.063742,155.05,155.0,39.1526652]
[1748666349860,6.5929,155.05,155.0,39.1526652]
[1748666350062,28.47028783,155.06,155.01,22.02111558]
[1748666350281,22.02111558,155.06,155.01,22.02111558]
[1748666350489,6.44882714,155.07,155.03,22.02111558]
[1748666350490,22.02111558,155.07,155.03,22.02111558]
[1748666350788,158.1293391,155.1,155.05,22.02111558]
[1748666350789,116.00999528,155.1,155.05,22.02111558]
[1748666350993,22.02111558,155.09,155.04,48.30543872]
[1748666351869,22.02111558,155.08,155.04,26.28432314]
[1748666352867,122.45755163,155.1,155.04,26.28432314]
[1748666353372,22.02111558,155.09,155.04,48.30543872]
[1748666354087,28.46912109,155.09,155.04,48.30543872]
[1748666354283,144.47860567,155.1,155.05,22.02111558]
[1748666355986,144.47860567,155.1,155.05,32.68111558]
[1748666357389,122.45749009,155.1,155.05,32.68111558]
[1748666357598,144.47860567,155.1,155.05,32.68111558]
[1748666358393,116.00999528,155.1,155.06,22.02111558]
[1748666358797,6.44697947,155.12,155.06,28.47017612]
[1748666359093,28.46809505,155.12,155.07,22.02111558]
[1748666359592,22.02111558,155.11,155.06,28.47017612]
[1748666359797,22.02111558,155.11,155.06,22.02111558]
[1748666360271,22.02111558,155.11,155.06,28.47020044]
[1748666360791,28.46828005,155.11,155.06,22.02111558]
[1748666361164,28.46828005,155.11,155.07,22.02111558]
[1748666361771,6.44716447,155.11,155.07,22.02111558]
[1748666361969,6.44716447,155.11,155.06,0.28432314]
[1748666362169,6.44716447,155.11,155.07,22.02111558]
[1748666362588,28.46828005,155.11,155.06,22.02111558]
[1748666362778,28.46828005,155.11,155.05,10.66]
[1748666363095,28.46828005,155.11,155.06,22.02111558]
[1748666365475,28.46828005,155.11,155.05,17.10943962]
[1748666365682,28.46828005,155.11,155.06,22.02111558]
[1748666366995,22.02111558,155.1,155.05,32.68111558]
[1748666367222,28.46828005,155.11,155.06,22.02111558]
[1748666367504,6.44716447,155.11,155.07,22.02111558]
[1748666370405,28.46828005,155.11,155.06,22.02111558]
[1748666370600,28.46828005,155.11,155.05,10.66]
[1748666370601,22.02111558,155.09,155.05,10.66]
[1748666374103,28.46977811,155.08,155.05,10.66]
[1748666376710,28.46977811,155.08,155.03,2.53848853]
[1748666376711,22.02111558,155.07,155.03,2.53848853]
[1748666376895,22.02111558,155.06,155.03,2.53848853]
[1748666378300,6.4495324,155.05,155.03,2.53848853]
[1748666379681,28.47064798,155.05,155.03,2.53848853]
[1748666379882,22.02111558,155.04,155.03,2.53848853]
[1748666380483,28.47106398,155.04,155.03,2.53848853]
[1748666381227,6.4499484,155.04,155.03,2.53848853]
[1748666382910,28.47106398,155.04,155.03,2.53848853]
[1748666383723,47.12071284,155.04,155.03,2.53848853]
[1748666384012,48.66381284,155.04,155.03,2.53848853]
[1748666385887,74.66381284,155.04,155.03,2.53848853]
[1748666386501,96.68492842,155.04,155.03,2.53848853]
[1748666390127,96.82708999,155.04,155.03,2.53848853]
[1748666390299,90.37714159,155.04,155.03,2.53848853]
[1748666392014,96.82708999,155.04,155.03,2.53848853]
[1748666392417,96.96925156,155.04,155.03,2.53848853]
[1748666393691,70.96925156,155.04,155.03,2.53848853]
[1748666394104,76.98585156,155.04,155.03,2.53848853]
[1748666395713,32.9436204,155.04,155.03,2.53848853]
[1748666395895,76.98585156,155.04,155.03,2.53848853]
[1748666400427,36.03076398,155.04,155.03,2.53848853]
[1748666403826,30.01416398,155.04,155.03,2.53848853]
[1748666405406,28.47106398,155.04,155.03,2.53848853]
[1748666406628,6.4499484,155.04,155.03,2.53848853]
[1748666406836,28.47106398,155.04,155.03,2.53848853]
[1748666411942,20.51531236,155.04,155.03,2.53848853]
[1748666420842,121.42641706,155.04,155.03,2.53848853]
[1748666421148,123.19747863,155.04,155.03,2.53848853]
[1748666422317,34.0788484,155.04,155.03,2.53848853]
[1748666422519,20.51448043,155.06,155.03,2.53848853]
[1748666422727,6.44911647,155.06,155.03,2.53848853]
[1748666423024,20.51448043,155.06,155.03,2.53848853]
[1748666423838,24.25463223,155.08,155.03,2.53848853]
[1748666423839,23.23515916,155.07,155.03,2.53848853]
[1748666424034,31.13074267,155.07,155.03,2.53848853]
[1748666424539,37.57956663,155.07,155.03,2.53848853]
[1748666426445,21.96094747,155.06,155.03,2.53848853]
[1748666428050,21.96094747,155.05,155.03,2.53848853]
[1748666428250,6.4499484,155.04,155.03,2.53848853]
[1748666428934,28.41089587,155.04,155.03,2.53848853]
[1748666430335,21.96094747,155.05,155.03,2.53848853]
[1748666431935,28.41006394,155.06,155.03,2.53848853]
[1748666433049,21.96094747,155.06,155.03,2.53848853]
[1748666434238,28.41006394,155.06,155.03,2.53848853]
[1748666435651,182.88961269,155.07,155.03,2.53848853]
[1748666436351,21.96094747,155.06,155.03,2.53848853]
[1748666438049,6.44942477,155.06,155.03,2.53848853]
[1748666440559,28.41037224,155.06,155.03,2.53848853]
[1748666441756,154.47985914,155.07,155.03,2.53848853]
[1748666442044,6.44863372,155.08,155.04,21.96094747]
[1748666442251,28.40958119,155.08,155.04,21.96094747]
[1748666444464,28.40891461,155.09,155.03,2.53848853]
[1748666444651,28.40891461,155.09,155.04,21.96094747]
[1748666445454,6.44796714,155.09,155.04,21.96094747]
[1748666445645,28.40891461,155.09,155.04,21.96094747]
[1748666446855,21.96094747,155.07,155.03,2.53848853]
[1748666448757,6.44911647,155.06,155.03,2.53848853]
[1748666449151,6.44911647,155.06,155.03,24.499436]
[1748666449359,6.44877472,155.07,155.03,24.499436]
[1748666451076,6.44877472,155.07,155.03,2.53848853]
[1748666451269,6.44877472,155.07,155.03,24.499436]
[1748666454573,6.44877472,155.07,155.03,2.53848853]
[1748666454777,28.40972219,155.07,155.03,2.53848853]
[1748666460800,21.96094747,155.05,155.03,2.53848853]
[1748666463063,6.44993977,155.05,155.03,2.53848853]
[1748666463266,6.44924246,155.06,155.03,24.499436]
[1748666464819,6.44924246,155.06,155.03,2.53848853]
[1748666465995,28.40954191,155.08,155.03,24.499436]
[1748666466514,175.93887443,155.11,155.03,24.499436]
[1748666466515,167.99027443,155.11,155.07,21.96094747]
[1748666466809,167.99027443,155.11,155.08,21.96094747]
[1748666466810,21.09027443,155.11,155.08,21.96094747]
[1748666467110,21.09027443,155.11,155.09,21.96094747]
[1748666467419,34.17403382,155.14,155.09,21.96094747]
[1748666467420,12.21308635,155.14,155.11,0.28432314]
[1748666467708,12.21308635,155.14,155.13,21.96094747]
[1748666468300,12.21308635,155.14,155.11,21.96094747]
[1748666468477,12.21308635,155.14,155.12,21.96094747]
[1748666468802,12.21308635,155.14,155.09,0.28432314]
[1748666469000,18.65896352,155.14,155.11,21.96094747]
[1748666470282,12.21308635,155.14,155.08,34.08923305]
[1748666470490,12.21308635,155.14,155.12,21.96094747]
[1748666471584,12.21308635,155.14,155.08,34.08923305]
[1748666471585,18.6589946,155.14,155.08,27.641]
[1748666471785,18.6589946,155.14,155.11,21.96094747]
[1748666472705,12.21308635,155.14,155.11,21.96094747]
[1748666474903,12.21308635,155.14,155.13,22.24527061]
[1748666475083,12.21308635,155.14,155.13,32.82527061]
[1748666476093,18.65887724,155.14,155.1,21.96094747]
[1748666476292,40.61982471,155.14,155.09,32.54094747]
[1748666476682,40.61982471,155.14,155.09,10.58]
[1748666476888,21.96094747,155.12,155.09,10.58]
[1748666477406,21.96094747,155.12,155.07,21.96094747]
[1748666477610,21.96094747,155.11,155.06,114.80094747]
[1748666478587,28.40836889,155.11,155.06,114.80094747]
[1748666478793,21.96094747,155.13,155.08,21.96094747]
[1748666479087,28.40717148,155.13,155.08,21.96094747]
[1748666480386,18.65897839,155.14,155.09,21.96094747]
[1748666480586,18.65897839,155.14,155.1,21.96094747]
[1748666481217,12.21308635,155.14,155.1,21.96094747]
[1748666481411,18.65908174,155.14,155.1,21.96094747]
[1748666481620,40.62002921,155.14,155.09,21.96094747]
[1748666481818,21.96094747,155.13,155.09,21.96094747]
[1748666482616,6.44629034,155.13,155.09,21.96094747]
[1748666483818,28.40723781,155.13,155.06,92.84]
[1748666484029,21.96094747,155.11,155.06,92.84]
[1748666484333,21.96094747,155.11,155.06,114.80094747]
[1748666484502,21.96094747,155.12,155.07,21.96094747]
[1748666485144,6.44703758,155.11,155.07,21.96094747]
[1748666485918,28.40798505,155.11,155.06,114.80094747]
[1748666488424,28.40798505,155.11,155.06,21.96094747]
[1748666489036,21.96094747,155.1,155.05,58.54094747]
[1748666489207,21.96094747,155.09,155.05,58.54094747]
[1748666489405,21.96094747,155.1,155.05,36.58]
[1748666489731,21.96094747,155.1,155.05,58.54094747]
[1748666490531,6.44786897,155.09,155.05,32.54094747]
[1748666490734,28.40881644,155.09,155.05,32.54094747]
[1748666491706,6.44786897,155.09,155.05,32.54094747]
[1748666491908,21.96094747,155.11,155.06,21.96094747]
[1748666492136,29.71084747,155.12,155.07,21.96094747]
[1748666493129,28.40828939,155.11,155.06,21.96094747]
[1748666493455,21.96094747,155.1,155.06,21.96094747]
[1748666494230,28.40828939,155.11,155.06,21.96094747]
[1748666496242,14.1965632,155.12,155.07,21.96094747]
[1748666496449,153.34629587,155.13,155.09,21.96094747]
[1748666498146,12.21308635,155.14,155.12,21.96094747]
[1748666498354,12.21308635,155.14,155.13,21.96094747]
[1748666499073,12.21308635,155.14,155.13,28.40715387]
[1748666500678,12.21308635,155.14,155.13,21.96094747]
[1748666501037,12.21308635,155.14,155.13,28.40715387]
[1748666501863,12.21308635,155.14,155.13,28.69147701]
[1748666505966,12.21308635,155.14,155.13,21.96094747]
[1748666509446,12.21308635,155.14,155.12,36.56]
[1748666509643,12.21308635,155.14,155.12,58.52094747]
[1748666510463,12.21308635,155.14,155.13,21.96094747]
[1748666513553,12.21308635,155.14,155.12,32.52094747]
[1748666515078,12.21308635,155.14,155.13,21.96094747]
[1748666521155,12.21308635,155.14,155.12,32.52094747]
[1748666521554,12.21308635,155.14,155.12,10.56]
[1748666522295,12.21308635,155.14,155.12,32.52094747]
[1748666522581,12.21308635,155.14,155.13,21.96094747]
[1748666524378,12.21308635,155.14,155.13,28.40715387]
[1748666524772,12.21308635,155.14,155.13,21.96094747]
[1748666526265,12.21308635,155.14,155.12,17.00649766]
[1748666526266,12.21308635,155.14,155.12,10.56]
[1748666526987,12.21308635,155.14,155.11,21.96094747]
[1748666528588,12.21308635,155.14,155.13,21.96094747]
[1748666529267,12.21308635,155.14,155.12,21.96094747]
[1748666530484,12.21308635,155.14,155.11,21.96094747]
[1748666532369,12.21308635,155.14,155.12,21.96094747]
[1748666533777,12.21308635,155.14,155.13,21.96094747]
[1748666534979,12.21308635,155.14,155.13,28.40715387]
[1748666535186,12.21308635,155.14,155.13,28.69147701]
[1748666537089,12.21308635,155.14,155.13,54.69147701]
[1748666538910,146.9,155.24,155.17,18.64964886]
[1748666539075,6.1849,155.25,155.22,21.96094747]
[1748666539274,1.5382,155.26,155.22,21.96094747]
[1748666541089,1.5382,155.26,155.23,21.96094747]
[1748666542297,7.97904167,155.26,155.23,21.96094747]
[1748666542700,28.40092686,155.28,155.23,21.96094747]
[1748666543891,21.96094747,155.27,155.23,21.96094747]
[1748666544977,28.40168798,155.27,155.23,21.96094747]
[1748666545397,159.52477234,155.29,155.24,21.96094747]
[1748666545607,153.33987234,155.29,155.27,21.96094747]
[1748666545798,146.9,155.29,155.27,21.96094747]
[1748666545993,146.9,155.29,155.26,21.96094747]
[1748666548508,146.9,155.29,155.27,21.96094747]
[1748666548815,21.96094747,155.31,155.27,21.96094747]
[1748666549001,28.40003353,155.31,155.27,21.96094747]
[1748666549301,153.3383114,155.33,155.27,21.96094747]
[1748666549607,21.96094747,155.31,155.27,21.96094747]
[1748666550400,21.96094747,155.32,155.27,21.96094747]
[1748666550619,21.96094747,155.3,155.23,36.52]
[1748666550778,21.96094747,155.3,155.25,21.96094747]
[1748666551688,21.96094747,155.29,155.25,21.96094747]
[1748666552318,21.96094747,155.29,155.24,21.96094747]
[1748666553106,21.96094747,155.27,155.23,10.52]
[1748666553294,21.96094747,155.26,155.23,10.52]
[1748666553605,21.96094747,155.25,155.23,10.52]
[1748666553981,21.96094747,155.25,155.2,21.96094747]
[1748666554399,21.96094747,155.25,155.2,28.40411846]
[1748666555897,28.40220224,155.25,155.2,21.96094747]
[1748666556415,28.40220224,155.25,155.19,43.08577021]
[1748666556711,21.96094747,155.25,155.21,21.96094747]
[1748666557084,28.40217442,155.25,155.19,43.08577021]
[1748666557416,28.40217442,155.25,155.21,21.96094747]
[1748666558105,21.96094747,155.24,155.2,21.96094747]
[1748666559185,21.96094747,155.24,155.19,36.5]
[1748666559385,21.96094747,155.24,155.2,21.96094747]
[1748666561795,28.40270917,155.24,155.2,21.96094747]
[1748666562109,21.96094747,155.21,155.17,10.52]
[1748666562437,21.96094747,155.18,155.17,10.52]
[1748666562712,21.96094747,155.18,155.14,92.8]
[1748666562713,21.96094747,155.19,155.14,114.76094747]
[1748666563285,21.96094747,155.21,155.16,21.96094747]
[1748666563596,28.49874747,155.22,155.17,21.96094747]
[1748666563796,21.96094747,155.21,155.16,21.96094747]
[1748666564901,21.96094747,155.21,155.17,21.96094747]
[1748666566308,28.49874747,155.22,155.17,21.96094747]
[1748666566811,28.49874747,155.22,155.16,6.44457272]
[1748666566991,28.49874747,155.22,155.17,21.96094747]
[1748666567418,12.98038346,155.22,155.17,21.96094747]
[1748666567596,34.94133093,155.22,155.17,21.96094747]
[1748666570325,28.40389538,155.21,155.17,21.96094747]
[1748666570533,6.44294791,155.21,155.14,99.24572631]
[1748666570827,21.96094747,155.2,155.16,21.96094747]
[1748666571823,28.4042836,155.2,155.16,21.96094747]
[1748666572323,28.4042836,155.2,155.15,21.96094747]
[1748666572793,28.4042836,155.2,155.15,28.40631129]
[1748666573203,21.96094747,155.2,155.15,28.40631129]
[1748666573408,28.40436027,155.2,155.15,21.96094747]
[1748666575422,28.40436027,155.2,155.16,21.96094747]
[1748666575803,21.96094747,155.21,155.16,21.96094747]
[1748666577392,28.40396497,155.21,155.16,21.96094747]
[1748666581318,21.96094747,155.2,155.16,21.96094747]
[1748666582603,28.40440376,155.2,155.16,21.96094747]
[1748666583626,21.96094747,155.18,155.13,10.52]
[1748666583923,21.96094747,155.19,155.14,21.96094747]
[1748666585015,28.40470744,155.19,155.14,28.40670535]
[1748666585326,28.40470744,155.19,155.14,21.96094747]
[1748666585714,6.44375997,155.19,155.14,21.96094747]
[1748666586243,6.44375997,155.19,155.15,21.96094747]
[1748666586413,28.40470744,155.19,155.14,21.96094747]
[1748666587719,21.96094747,155.18,155.13,32.48094747]
[1748666588415,6.44329896,155.2,155.13,10.52]
[1748666588416,67.20119524,155.2,155.13,10.52]
[1748666588613,21.96094747,155.16,155.13,10.52]
[1748666588813,21.96094747,155.17,155.13,10.52]
[1748666589736,28.40570679,155.17,155.13,10.52]
[1748666590124,6.44475932,155.17,155.13,32.48094747]
[1748666590314,29.92499084,155.18,155.13,32.48094747]
[1748666590514,7.96404337,155.18,155.14,21.96094747]
[1748666592034,29.92499084,155.18,155.13,32.48094747]
[1748666594239,8.064,155.22,155.17,21.96094747]
[1748666594543,146.9,155.23,155.19,21.96094747]
[1748666595141,168.86094747,155.23,155.18,21.96094747]
[1748666595350,175.3030813,155.23,155.18,21.96094747]
[1748666596430,21.96094747,155.22,155.14,26.0]
[1748666596623,21.96094747,155.21,155.17,21.96094747]
[1748666597519,6.44329896,155.2,155.17,21.96094747]
[1748666598831,21.96094747,155.19,155.14,21.96094747]
[1748666599419,6.44412939,155.18,155.14,21.96094747]
[1748666600527,6.44412939,155.18,155.15,21.96094747]
[1748666601936,28.40466162,155.19,155.14,21.96094747]
[1748666611633,21.96094747,155.18,155.13,32.48094747]
[1748666612040,21.96094747,155.15,155.13,10.52]
[1748666612771,22.55299954,155.19,155.13,10.52]
[1748666612940,21.96094747,155.15,155.13,10.52]
[1748666613371,21.96094747,155.15,155.1,21.96094747]
[1748666613372,28.40662707,155.15,155.1,21.96094747]
[1748666615455,28.40662707,155.15,155.11,21.96094747]
[1748666615869,6.4456796,155.15,155.11,21.96094747]
[1748666616842,21.96094747,155.15,155.11,21.96094747]
[1748666619169,22.55299954,155.19,155.13,21.96094747]
[1748666619342,21.96094747,155.18,155.13,21.96094747]
[1748666620438,6.44454469,155.17,155.13,21.96094747]
[1748666621080,6.44371415,155.19,155.13,21.96094747]
[1748666621355,6.44371415,155.19,155.14,21.96094747]
[1748666621535,6.44371415,155.19,155.15,21.96094747]
[1748666623139,6.44371415,155.19,155.14,21.96094747]
[1748666623864,28.40466162,155.19,155.14,21.96094747]
[1748666624758,21.96094747,155.18,155.13,32.44094747]
[1748666626061,6.44454469,155.17,155.13,32.44094747]
[1748666626293,28.40517323,155.18,155.13,32.44094747]
[1748666627569,21.96094747,155.19,155.14,21.96094747]
[1748666627765,146.9,155.2,155.17,21.96094747]
[1748666628086,21.96094747,155.23,155.18,21.96094747]
[1748666628261,28.40330526,155.23,155.18,21.96094747]
[1748666628883,170.43194747,155.25,155.2,21.96094747]
[1748666629477,146.9,155.25,155.21,21.96094747]
[1748666629868,153.34132258,155.25,155.21,21.96094747]
[1748666630777,175.30227005,155.25,155.21,21.96094747]
[1748666630984,146.9,155.25,155.21,21.96094747]
[1748666631566,153.34124315,155.25,155.19,6.72795338]
[1748666631783,153.34124315,155.25,155.21,21.96094747]
[1748666632155,146.9,155.25,155.21,21.96094747]
[1748666632564,146.9,155.25,155.23,21.96094747]
[1748666632762,9.03199401,155.27,155.24,21.96094747]
[1748666633183,6.44002135,155.28,155.24,21.96094747]
[1748666633489,6.44002135,155.28,155.23,32.44094747]
[1748666633490,28.40096882,155.28,155.23,32.44094747]
[1748666636879,21.96094747,155.26,155.2,32.44326557]
[1748666637087,21.96094747,155.26,155.21,21.96094747]
[1748666638064,21.96094747,155.26,155.21,28.40366458]
[1748666640280,28.40176677,155.26,155.21,28.40366458]
[1748666640964,21.96094747,155.25,155.21,21.96094747]
[1748666641168,21.96094747,155.25,155.2,47.96094747]
[1748666641378,21.96094747,155.24,155.2,26.0]
[1748666642007,6.44161464,155.25,155.2,47.96094747]
[1748666642201,21.96094747,155.24,155.2,47.96094747]
[1748666642779,21.96094747,155.23,155.19,32.42094747]
[1748666642976,21.96094747,155.22,155.19,10.46]
[1748666643291,21.96094747,155.21,155.19,10.46]
[1748666643483,28.40390261,155.21,155.19,10.46]
[1748666644691,21.96094747,155.2,155.15,10.46]
[1748666644915,21.96094747,155.19,155.15,10.46]
[1748666647711,28.40441211,155.2,155.15,32.42094747]
[1748666647891,21.96094747,155.2,155.16,21.96094747]
[1748666648223,21.96094747,155.21,155.16,21.96094747]
[1748666648422,21.96094747,155.22,155.17,21.96094747]
[1748666649322,21.96094747,155.21,155.16,21.96094747]
[1748666650306,28.40393436,155.21,155.16,21.96094747]
[1748666651706,21.96094747,155.2,155.15,16.9053496]
[1748666651903,21.96094747,155.2,155.16,21.96094747]
[1748666654609,21.96094747,155.2,155.07,10.0]
[1748666654610,21.96094747,155.17,155.11,10.46]
[1748666654809,26.0,155.19,155.11,10.46]
[1748666654810,21.96094747,155.15,155.11,10.46]
[1748666655408,21.96094747,155.15,155.11,32.42094747]
[1748666658307,6.44454469,155.17,155.11,32.42094747]
[1748666658613,21.96094747,155.15,155.11,32.42094747]
[1748666660521,21.96094747,155.14,155.11,10.46]
[1748666660815,28.40635087,155.15,155.11,32.42094747]
[1748666669715,6.44454469,155.17,155.12,21.96094747]
[1748666670037,28.40549216,155.17,155.13,21.96094747]
[1748666671323,6.44454469,155.17,155.13,21.96094747]
[1748666671634,28.40549216,155.17,155.13,21.96094747]
[1748666671933,21.96094747,155.16,155.12,21.96094747]
[1748666672425,21.96094747,155.15,155.11,10.46]
[1748666673426,28.40640201,155.15,155.11,10.46]
[1748666674709,28.40640201,155.15,155.11,32.42094747]
[1748666675308,21.96094747,155.15,155.11,32.42094747]
[1748666676311,21.96094747,155.17,155.13,21.96094747]
[1748666676610,21.96094747,155.17,155.12,21.96094747]
[1748666676828,21.96094747,155.16,155.12,21.96094747]
[1748666677034,21.96094747,155.16,155.11,38.86760061]
[1748666677633,21.96094747,155.15,155.11,10.46]
[1748666677819,21.96094747,155.15,155.11,32.42094747]
[1748666678711,28.40644823,155.15,155.11,32.42094747]
[1748666679616,21.96094747,155.13,155.11,10.46]
[1748666680536,28.40719976,155.13,155.11,10.46]
[1748666680946,21.96094747,155.12,155.11,10.46]
[1748666682638,21.96094747,155.12,155.08,21.96094747]
[1748666683144,21.96094747,155.12,155.07,10.44]
[1748666683349,21.96094747,155.1,155.07,10.44]
[1748666683554,21.96094747,155.09,155.07,10.44]
[1748666684041,6.44870058,155.07,155.03,12.97848853]
[1748666684252,21.96094747,155.06,155.03,12.97848853]
[1748666685443,21.96094747,155.07,155.03,12.97848853]